fUST/lending_fUST_20260124
["ID","MTS","AMOUNT","RATE_DAILY","PERIOD"]
[403158191,1769214660439,-500.0,0.00022191,2]
[403158192,1769214660448,-500.0,0.00022191,2]
[403158193,1769214660457,-500.0,0.00022191,2]
[403158194,1769214660467,-500.0,0.00022191,2]
[403158195,1769214660476,-500.0,0.00022191,2]
[403158196,1769214660485,-500.0,0.00022191,2]
[403158197,1769214660495,-500.0,0.00022191,2]
[403158198,1769214660505,-666.45,0.00022191,2]
[403158199,1769214660515,-500.0,0.00022191,2]
[403158200,1769214660524,-504.4,0.00022191,2]
[403158201,1769214660533,-500.0,0.00022191,2]
[403158202,1769214660543,-482.85111915,0.00022191,2]
[403158203,1769214660554,-500.0,0.00022191,2]
[403158204,1769214660563,-500.0,0.00022191,2]
[403158205,1769214660572,-500.0,0.00022191,2]
[403158206,1769214660581,-500.0,0.00022191,2]
[403158207,1769214660590,-500.0,0.00022191,2]
[403158208,1769214660599,-500.0,0.00022191,2]
[403158209,1769214660609,-500.0,0.00022191,2]
[403158210,1769214660618,-500.0,0.00022191,2]
[403158211,1769214660627,-500.0,0.00022191,2]
[403158212,1769214660636,-500.0,0.00022191,2]
[403158213,1769214660645,-500.0,0.00022191,2]
[403158214,1769214660654,-500.0,0.00022191,2]
[403158215,1769214660663,-500.0,0.00022191,2]
[403158216,1769214660672,-500.0,0.00022191,2]
[403158217,1769214660682,-500.0,0.00022191,2]
[403158218,1769214660692,-500.0,0.00022191,2]
[403158219,1769214660702,-500.0,0.00022191,2]
[403158220,1769214660713,-500.0,0.00022191,2]
[403158221,1769214660723,-314.73328093,0.00022191,2]
[403158222,1769214661082,-185.26671907,0.00022191,2]
[403158223,1769214661092,-500.0,0.00022191,2]
[403158224,1769214661102,-500.0,0.00022191,2]
[403158225,1769214661111,-500.0,0.00022191,2]
[403158226,1769214661121,-500.0,0.00022191,2]
[403158227,1769214661130,-500.0,0.00022191,2]
[403158228,1769214661140,-500.0,0.00022191,2]
[403158229,1769214661149,-500.0,0.00022191,2]
[403158230,1769214661159,-500.0,0.00022191,2]
[403158231,1769214661168,-500.0,0.00022191,2]
[403158232,1769214661177,-575.2253995,0.00022191,2]
[403158233,1769214661187,-500.0,0.00022191,2]
[403158234,1769214661196,-500.0,0.00022191,2]
[403158235,1769214661205,-500.0,0.00022191,2]
[403158236,1769214661214,-218.84895588,0.00022191,2]
[403158237,1769214661226,-281.15104412,0.00022191,2]
[403158238,1769214661235,-281.16316095,0.00022191,2]
[403158239,1769214661246,-218.83683905,0.00022191,2]
[403158240,1769214661256,-500.0,0.00022191,2]
[403158241,1769214661264,-500.0,0.00022191,2]
[403158242,1769214661273,-500.0,0.00022191,2]
[403158243,1769214661282,-500.0,0.00022191,2]
[403158244,1769214661291,-500.0,0.00022191,2]
[403158245,1769214661300,-287.85747904,0.00022191,2]
[403158246,1769214661965,-262.884308,0.00019178,2]
[403158247,1769214661975,-262.884308,0.00019178,2]
[403158248,1769214661984,-262.884308,0.00019178,2]
[403158249,1769214661993,-262.884308,0.00019178,2]
[403158250,1769214662002,-262.884308,0.00019178,2]
[403158251,1769214662011,-262.884308,0.00019178,2]
[403158252,1769214662020,-262.884308,0.00019178,2]
[403158253,1769214662029,-262.884308,0.00019178,2]
[403158254,1769214662037,-262.884308,0.00019178,2]
[403158255,1769214662046,-262.884308,0.00019178,2]
[403158256,1769214662055,-262.884308,0.00019178,2]
[403158257,1769214662064,-262.884308,0.00019178,2]
[403158258,1769214662074,-262.884308,0.00019178,2]
[403158259,1769214662083,-262.884308,0.00019178,2]
[403158260,1769214662092,-262.884308,0.00019178,2]
[403158261,1769214662102,-262.884298,0.00019178,2]
[403158262,1769214662112,-151.0,0.00020323,2]
[403158263,1769214662121,-151.0,0.00020323,2]
[403158264,1769214662130,-151.0,0.00020323,2]
[403158265,1769214662139,-151.0,0.00020323,2]
[403158266,1769214662148,-151.0,0.00020323,2]
[403158267,1769214662157,-200.0,0.00021,2]
[403158268,1769214662166,-500.0,0.00021917,2]
[403158269,1769214662175,-212.14252096,0.00022191,2]
[403158270,1769214662185,-500.0,0.00022191,2]
[403158271,1769214662193,-500.0,0.00022191,2]
[403158272,1769214662203,-500.0,0.00022191,2]
[403158273,1769214662212,-500.0,0.00022191,2]
[403158274,1769214662221,-525.28,0.00022191,2]
[403158275,1769214662230,-500.0,0.00022191,2]
[403158276,1769214662239,-500.0,0.00022191,2]
[403158277,1769214662249,-500.0,0.00022191,2]
[403158278,1769214662258,-500.0,0.00022191,2]
[403158279,1769214662268,-500.0,0.00022191,2]
[403158280,1769214662278,-533.5,0.00022191,2]
[403158281,1769214662287,-500.0,0.00022191,2]
[403158282,1769214662296,-500.0,0.00022191,2]
[403158283,1769214662306,-500.0,0.00022191,2]
[403158284,1769214662315,-500.0,0.00022191,2]
[403158285,1769214662325,-500.0,0.00022191,2]
[403158286,1769214662335,-500.0,0.00022191,2]
[403158287,1769214662344,-513.46,0.00022191,2]
[403158288,1769214662353,-500.0,0.00022191,2]
[403158289,1769214662362,-500.0,0.00022191,2]
[403158290,1769214662372,-500.0,0.00022191,2]
[403158291,1769214662382,-500.0,0.00022191,2]
[403158292,1769214662391,-500.0,0.00022191,2]
[403158293,1769214662402,-500.0,0.00022191,2]
[403158294,1769214662412,-500.0,0.00022191,2]
[403158295,1769214662421,-538.78254704,0.00022191,2]
[403158296,1769214662431,-500.0,0.00022191,2]
[403158297,1769214662441,-500.0,0.00022191,2]
[403158298,1769214662452,-437.98308212,0.00022191,2]
[403158334,1769215529911,-511.78478466,0.00013273,2]
[403158336,1769215604047,-150.0,0.00013042,2]
[403158337,1769215604068,-3.64747658,0.00013273,2]
[403158338,1769215604088,-158.09763412,0.00013273,2]
[403158339,1769215604112,-102.5448893,0.00013273,2]
[403158353,1769215832534,-150.0,0.00013045,2]
[403158355,1769215832543,-170.55751012,0.00013159,2]
[403158357,1769215832554,-164.8225679,0.00013273,2]
[403158359,1769215832565,-350.60969334,0.00013273,2]
[403158361,1769215832575,-500.0,0.00013698,2]
[403158363,1769215832584,-396.22547111,0.00013698,3]
[403158394,1769215838772,-103.77452889,0.00013698,3]
[403158395,1769215838782,-193.31320968,0.00013699,2]
[403158396,1769215838794,-306.68679032,0.00013699,2]
[403158397,1769215838803,-500.0,0.00013699,2]
[403158398,1769215838814,-150.0,0.0001423,2]
[403158399,1769215838824,-250.0,0.00014247,2]
[403158400,1769215838834,-201.98426818,0.000149,2]
[403158401,1769215838843,-201.25786194,0.00015159,2]
[403158402,1769215838852,-201.98426818,0.00015247,2]
[403158403,1769215838862,-171.84867087,0.00015272,2]
[403158404,1769215838872,-242.50223843,0.00015272,2]
[403158405,1769215838882,-186.9685637,0.00015272,2]
[403158406,1769215838891,-155.0,0.00015347,2]
[403158407,1769215838901,-300.0,0.00015794,2]
[403158408,1769215838911,-82.35757333,0.00015794,2]
[403158409,1769215838922,-217.64242667,0.00015794,2]
[403158410,1769215838932,-300.0,0.00015794,2]
[403158411,1769215838942,-300.0,0.00015794,2]
[403158412,1769215838951,-300.0,0.00015794,2]
[403158413,1769215838961,-300.0,0.00015794,2]
[403158414,1769215838970,-300.0,0.00015794,2]
[403158415,1769215838980,-300.0,0.00015794,2]
[403158416,1769215838989,-300.0,0.00015794,2]
[403158417,1769215838999,-300.0,0.00015794,2]
[403158418,1769215839009,-300.0,0.00015794,2]
[403158419,1769215839018,-300.0,0.00015794,2]
[403158420,1769215839028,-300.0,0.00015794,2]
[403158421,1769215839038,-300.0,0.00015794,2]
[403158422,1769215839048,-300.0,0.00015794,2]
[403158423,1769215839058,-600.0,0.00016109,2]
[403158424,1769215839067,-154.76574163,0.00016438,2]
[403158425,1769215839077,-231.95821376,0.00017159,2]
[403158426,1769215839087,-250.0,0.00017237,2]
[403158427,1769215839098,-720.0,0.0001772,2]
[403158428,1769215839108,-262.65856558,0.00019159,2]
[403158429,1769215839117,-864.0,0.00019492,2]
[403158430,1769215839127,-1041.66666667,0.0001966,2]
[403158431,1769215839136,-160.0,0.0001966,2]
[403158432,1769215839146,-714.53,0.00020313,3]
[403158433,1769215839156,-357.27,0.00020313,3]
[403158434,1769215839173,-514.84070869,0.00020323,2]
[403158435,1769215839188,-151.0,0.00020323,2]
[403158436,1769215839198,-151.0,0.00020323,2]
[403158437,1769215839207,-250.0,0.00020323,2]
[403158438,1769215839413,-151.0,0.00020323,2]
[403158439,1769215839424,-250.0,0.00020323,2]
[403158440,1769215839433,-151.0,0.00020323,2]
[403158441,1769215839443,-250.0,0.00020323,2]
[403158442,1769215839452,-151.0,0.00020323,2]
[403158443,1769215839460,-250.0,0.00020323,2]
[403158444,1769215839469,-500.0,0.00020323,2]
[403158445,1769215839479,-187.78006525,0.00020323,2]
[403158446,1769215839491,-250.0,0.00020323,2]
[403158447,1769215839501,-500.0,0.00020323,2]
[403158448,1769215839510,-194.72792766,0.00020323,2]
[403158449,1769215839519,-250.0,0.00020323,2]
[403158450,1769215839528,-500.0,0.00020323,2]
[403158451,1769215839537,-2487.15318209,0.00020323,2]
[403158452,1769215839546,-201.93286099,0.00020323,2]
[403158453,1769215839555,-250.0,0.00020323,2]
[403158454,1769215839564,-500.0,0.00020323,2]
[403158455,1769215839574,-209.40437684,0.00020323,2]
[403158456,1769215839583,-250.0,0.00020323,2]
[403158457,1769215839592,-389.31918944,0.00020323,2]
[403158479,1769215840910,-110.68081056,0.00020323,2]
[403158481,1769215840920,-217.15233878,0.00020323,2]
[403158483,1769215840929,-250.0,0.00020323,2]
[403158485,1769215840938,-500.0,0.00020323,2]
[403158487,1769215840947,-225.18697532,0.00020323,2]
[403158489,1769215840956,-250.0,0.00020323,2]
[403158491,1769215840965,-500.0,0.00020323,2]
[403158493,1769215840974,-233.51889341,0.00020323,2]
[403158495,1769215840983,-250.0,0.00020323,2]
[403158497,1769215840992,-500.0,0.00020323,2]
[403158499,1769215841001,-242.15909246,0.00020323,2]
[403158501,1769215841010,-250.0,0.00020323,2]
[403158503,1769215841022,-500.0,0.00020323,2]
[403158505,1769215841032,-251.11897888,0.00020323,2]
[403158507,1769215841041,-250.0,0.00020323,2]
[403158509,1769215841050,-500.0,0.00020323,2]
[403158511,1769215841059,-260.4103811,0.00020323,2]
[403158513,1769215841068,-250.0,0.00020323,2]
[403158515,1769215841077,-500.0,0.00020323,2]
[403158517,1769215841086,-270.0455652,0.00020323,2]
[403158519,1769215841095,-500.0,0.00020323,2]
[403158521,1769215841104,-500.0,0.00020323,2]
[403158523,1769215841113,-280.03725112,0.00020323,2]
[403158526,1769215841123,-500.0,0.00020323,2]
[403158528,1769215841132,-290.39862941,0.00020323,2]
[403158529,1769215841141,-301.1433787,0.00020323,2]
[403158531,1769215841150,-201.18700456,0.00020323,2]
[403158534,1769215841160,-333.06,0.0002059,3]
[403158535,1769215841170,-270.0,0.00020861,2]
[403158537,1769215841184,-554.34,0.0002087,10]
[403158539,1769215841194,-2579.17784983,0.00020871,2]
[403158541,1769215841205,-178.63,0.0002088,3]
[403158542,1769215841215,-535.94,0.0002088,3]
[403158543,1769215841225,-798.24,0.0002088,10]
[403158544,1769215841235,-665.2,0.0002088,10]
[403158545,1769215841244,-34433.21062346,0.0002088,2]
[403158708,1769215843046,-4131.12882622,0.0002088,2]
[403158875,1769215845724,-6260.91114423,0.0002088,2]
[403158886,1769216518999,-206.21179577,0.00014561,2]
[403158887,1769216544492,150.0,9.411e-05,2]
[403158888,1769216544946,150.0,0.00010266,2]
[403158889,1769216578999,-223.12745207,0.00014561,2]
[403158890,1769216624087,-223.12745207,0.00014415,2]
[403158891,1769216624108,-26.77254793,0.00014561,2]
[403158893,1769216668993,-172.88820423,0.00014561,2]
[403158894,1769216669021,-155.16179577,0.00014561,2]
[403158896,1769216673879,150.0,9.439e-05,2]
[403158897,1769216674295,150.0,0.00010297,2]
[403158898,1769216674690,150.0,0.00011155,2]
[403158899,1769216699010,-19.58238719,0.00014561,2]
[403158900,1769216699032,-230.31761281,0.00014561,2]
[403158901,1769216738645,150.0,9.441e-05,2]
[403158902,1769216773935,-244.17,0.00014561,2]
[403158903,1769216802664,150.0,9.444e-05,2]
[403158904,1769216803072,150.0,0.00010303,2]
[403158928,1769216998990,-111.00208019,0.00014561,2]
[403158929,1769216999014,-53.67657067,0.00014881,2]
[403158992,1769217031978,-120.57272864,0.00014881,2]
[403158994,1769217031987,-828.38802616,0.000152,2]
[403158996,1769217031996,-828.38802616,0.00015523,5]
[403158998,1769217032006,-169.7515669,0.00015569,2]
[403159000,1769217032014,-191.83815318,0.00015569,2]
[403159002,1769217032023,-300.0,0.00015569,2]
[403159004,1769217032032,-34309.95406287,0.0001557,2]
[403159006,1769217032041,-400.86462335,0.0001557,2]
[403159008,1769217032051,-300.0,0.00015576,2]
[403159010,1769217032059,-300.0,0.00015576,2]
[403159012,1769217032068,-300.0,0.00015576,2]
[403159014,1769217032077,-300.0,0.00015576,2]
[403159016,1769217032086,-300.0,0.00015576,2]
[403159018,1769217032095,-300.0,0.00015576,2]
[403159020,1769217032104,-300.0,0.00015576,2]
[403159022,1769217032113,-300.0,0.00015576,2]
[403159024,1769217032122,-300.0,0.00015576,2]
[403159026,1769217032131,-300.0,0.00015576,2]
[403159028,1769217032140,-300.0,0.00015576,2]
[403159030,1769217032149,-300.0,0.00015576,2]
[403159032,1769217032158,-300.0,0.00015576,2]
[403159034,1769217032168,-300.0,0.00015576,2]
[403159036,1769217032176,-300.0,0.00015576,2]
[403159038,1769217032185,-828.38802616,0.00015847,9]
[403159040,1769217032194,-600.0,0.00015887,2]
[403159042,1769217032204,-828.38802616,0.0001617,13]
[403159044,1769217032213,-157.68921818,0.00016438,2]
[403159046,1769217032222,-828.38802616,0.00016493,16]
[403159048,1769217032231,-828.38802616,0.00016817,20]
[403159050,1769217032240,-205.61417318,0.00016881,2]
[403159052,1769217032249,-828.38802616,0.0001714,24]
[403159054,1769217032258,-828.38802616,0.00017463,28]
[403159057,1769217032268,-720.0,0.00017475,2]
[403159058,1769217032277,-828.38802616,0.00017786,31]
[403159060,1769217032286,-351.00500958,0.00018,2]
[403159062,1769217032295,-828.38802616,0.0001811,35]
[403159064,1769217032304,-828.38802616,0.00018433,39]
[403159066,1769217032314,-828.38802616,0.00018756,42]
[403159067,1769217032322,-236.97904705,0.00018881,2]
[403159068,1769217032332,-500.0,0.00019,2]
[403159069,1769217032341,-828.38802616,0.0001908,46]
[403159070,1769217032351,-466.48,0.00019123,2]
[403159071,1769217032361,-864.0,0.00019223,2]
[403159072,1769217032370,-828.38802616,0.00019403,50]
[403159073,1769217032379,-1041.66666667,0.00019413,2]
[403159074,1769217032389,-828.38802616,0.00019726,54]
[403159075,1769217032398,-2417.55676133,0.0002,2]
[403159076,1769217032407,-828.38802616,0.0002005,57]
[403159077,1769217032559,-828.38802616,0.00020373,61]
[403159078,1769217032570,-285.48,0.0002047,3]
[403159079,1769217032579,-2487.15318209,0.00020502,2]
[403159081,1769217032588,-200.0,0.00020548,5]
[403159082,1769217032597,-1307.1704556,0.00020623,2]
[403159083,1769217032606,-332.38154955,0.0002067,2]
[403159085,1769217032615,-285.42,0.0002069,3]
[403159087,1769217032624,-828.38802616,0.00020696,65]
[403159089,1769217032633,-2004.27661591,0.000207,2]
[403159445,1769217037915,-1042.980566,0.000207,2]
[403159487,1769217040283,-3e-08,0.000207,2]
[403159550,1769217045945,-421.69,0.0002069,10]
[403159551,1769217045954,-10443.3942631,0.000207,2]
[403159552,1769217045965,-280.2939363,0.000207,2]
[403159553,1769217209054,-150.0,0.00013616,2]
[403159554,1769217209074,-334.53444227,0.00013699,2]
[403159555,1769217212339,-165.46555773,0.00013699,2]
[403159556,1769217212361,-1.13444227,0.00014247,2]
[403159557,1769217215536,-162.78,0.00014247,2]
[403159558,1769217217069,-162.78,0.00014247,2]
[403159560,1769217318332,150.0,0.00011953,2]
[403159561,1769217387405,150.0,0.00011245,2]
[403159562,1769217452968,150.0,0.00011254,2]
[403159563,1769217518037,150.0,0.00011254,2]
[403159564,1769217786967,150.0,0.00011248,2]
[403159566,1769217852927,150.0,0.00011243,2]
[403159567,1769217917295,150.0,0.00011268,2]
[403159568,1769217981414,150.0,0.00011268,2]
[403159575,1769218045687,150.0,0.00011265,2]
[403159578,1769218178764,150.0,0.00011233,2]
[403159594,1769218232037,-150.0,0.00012254,2]
[403159595,1769218232046,-182.31244891,0.00012299,2]
[403159605,1769218232055,-270.55773668,0.00012326,2]
[403159606,1769218232208,-300.0,0.00012326,2]
[403159607,1769218232217,-300.0,0.00012326,2]
[403159608,1769218232226,-1200.0,0.00012326,2]
[403159609,1769218232235,-495.197384,0.00012327,2]
[403159610,1769218232247,-4.802616,0.00012327,2]
[403159611,1769218232257,-500.0,0.00012327,2]
[403159612,1769218232266,-500.0,0.00012327,2]
[403159613,1769218232276,-480.8764776,0.00012327,2]
[403159614,1769218232285,-500.0,0.00012327,2]
[403159615,1769218232294,-500.0,0.00012327,2]
[403159616,1769218232303,-500.0,0.00012327,2]
[403159617,1769218232312,-500.0,0.00012327,2]
[403159618,1769218232322,-500.0,0.00012327,2]
[403159619,1769218232331,-500.0,0.00012327,2]
[403159620,1769218232340,-500.0,0.00012327,2]
[403159621,1769218232349,-500.0,0.00012327,2]
[403159622,1769218232358,-500.0,0.00012327,2]
[403159623,1769218232367,-500.0,0.00012327,2]
[403159624,1769218232376,-500.0,0.00012327,2]
[403159625,1769218232385,-500.0,0.00012327,2]
[403159626,1769218232394,-500.0,0.00012327,2]
[403159627,1769218232403,-500.0,0.00012327,2]
[403159628,1769218232412,-170.53785678,0.00012327,2]
[403159629,1769218232422,-500.0,0.00012327,2]
[403159630,1769218232431,-500.0,0.00012327,2]
[403159631,1769218232440,-500.0,0.00012327,2]
[403159632,1769218232449,-500.0,0.00012327,2]
[403159633,1769218232458,-500.0,0.00012327,2]
[403159634,1769218232467,-336.94095557,0.00012327,2]
[403159635,1769218232477,-500.0,0.00012327,2]
[403159636,1769218232486,-500.0,0.00012327,2]
[403159637,1769218232496,-500.0,0.00012327,2]
[403159638,1769218232505,-500.0,0.00012327,2]
[403159639,1769218232515,-500.0,0.00012327,2]
[403159640,1769218232524,-500.0,0.00012327,2]
[403159641,1769218232534,-500.0,0.00012327,2]
[403159642,1769218232542,-500.0,0.00012327,2]
[403159643,1769218232551,-500.0,0.00012327,2]
[403159644,1769218232560,-500.0,0.00012327,2]
[403159645,1769218232569,-500.0,0.00012327,2]
[403159646,1769218232578,-500.0,0.00012327,2]
[403159647,1769218232589,-500.0,0.00012327,2]
[403159648,1769218232598,-500.0,0.00012327,2]
[403159649,1769218232607,-500.0,0.00012327,2]
[403159650,1769218232617,-500.0,0.00012327,2]
[403159651,1769218232626,-500.0,0.00012327,2]
[403159652,1769218232634,-500.0,0.00012327,2]
[403159653,1769218232643,-500.0,0.00012327,2]
[403159654,1769218232652,-500.0,0.00012327,2]
[403159655,1769218232662,-500.0,0.00012327,2]
[403159656,1769218232671,-500.0,0.00012327,2]
[403159657,1769218232680,-500.0,0.00012327,2]
[403159658,1769218232690,-500.0,0.00012327,2]
[403159659,1769218232699,-500.0,0.00012327,2]
[403159660,1769218232708,-350.0,0.00012327,2]
[403159661,1769218232717,-490.02558217,0.00012327,2]
[403159662,1769218232726,-500.0,0.00012327,2]
[403159663,1769218232736,-500.0,0.00012327,2]
[403159664,1769218232745,-500.0,0.00012327,2]
[403159665,1769218232754,-500.0,0.00012327,2]
[403159666,1769218232763,-500.0,0.00012327,2]
[403159667,1769218232772,-500.0,0.00012327,2]
[403159668,1769218232781,-500.0,0.00012327,2]
[403159669,1769218232790,-500.0,0.00012327,2]
[403159670,1769218232800,-500.0,0.00012327,2]
[403159671,1769218232809,-500.0,0.00012327,2]
[403159672,1769218232818,-500.0,0.00012327,2]
[403159673,1769218232827,-500.0,0.00012327,2]
[403159674,1769218232835,-500.0,0.00012327,2]
[403159675,1769218232845,-500.0,0.00012327,2]
[403159676,1769218232853,-500.0,0.00012327,2]
[403159677,1769218232862,-500.0,0.00012327,2]
[403159678,1769218232871,-500.0,0.00012327,2]
[403159679,1769218232880,-500.0,0.00012327,2]
[403159680,1769218232890,-500.0,0.00012327,2]
[403159681,1769218232899,-500.0,0.00012327,2]
[403159682,1769218232908,-403.00854516,0.00012327,2]
[403159683,1769218232917,-600.33428279,0.00012327,2]
[403159684,1769218232926,-24520.09562303,0.00012328,2]
[403159685,1769218232939,-2997.86350935,0.00012328,2]
[403159686,1769218232961,-22482.04086762,0.00012328,2]
[403159687,1769218232970,-1827.4,0.00012329,2]
[403159688,1769218232980,-1522.83,0.00012329,2]
[403159689,1769218232989,-1269.03,0.00012329,2]
[403159690,1769218232998,-1057.52,0.00012329,2]
[403159691,1769218233007,-440.64,0.00012329,2]
[403159692,1769218233016,-367.2,0.00012329,2]
[403159693,1769218233025,-306.0,0.00012329,2]
[403159694,1769218233035,-255.0,0.00012329,2]
[403159695,1769218233044,-212.5,0.00012329,2]
[403159696,1769218233054,-177.08,0.00012329,2]
[403159697,1769218233064,-885.42,0.00012329,2]
[403159698,1769218233077,-1303.45,0.00012329,2]
[403159699,1769218233086,-1086.21,0.00012329,2]
[403159700,1769218233095,-452.59,0.00012329,2]
[403159701,1769218233104,-377.16,0.00012329,2]
[403159702,1769218233114,-314.3,0.00012329,2]
[403159703,1769218233124,-261.91,0.00012329,2]
[403159704,1769218233133,-218.26,0.00012329,2]
[403159705,1769218233142,-181.88,0.00012329,2]
[403159706,1769218233151,-151.57,0.00012329,2]
[403159707,1769218233161,-757.88,0.00012329,2]
[403159708,1769218233170,-300.0,0.00012574,2]
[403159709,1769218233178,-300.0,0.00012574,2]
[403159710,1769218233187,-300.0,0.00012574,2]
[403159711,1769218233197,-300.0,0.00012574,2]
[403159712,1769218233206,-300.0,0.00012574,2]
[403159713,1769218233215,-300.0,0.00012574,2]
[403159714,1769218233225,-300.0,0.00012574,2]
[403159715,1769218233234,-300.0,0.00012574,2]
[403159716,1769218233243,-300.0,0.00012574,2]
[403159717,1769218233252,-300.0,0.00012574,2]
[403159718,1769218233261,-300.0,0.00012574,2]
[403159719,1769218233271,-300.0,0.00012574,2]
[403159720,1769218233280,-300.0,0.00012574,2]
[403159721,1769218233289,-300.0,0.00012574,2]
[403159722,1769218233298,-300.0,0.00012574,2]
[403159723,1769218233307,-600.0,0.00012824,2]
[403159724,1769218233317,-150.0,0.00013294,2]
[403159725,1769218233326,-1000.0,0.00013699,2]
[403159726,1769218233336,-500.0,0.00013699,2]
[403159727,1769218233345,-720.0,0.00014107,2]
[403159728,1769218233354,-1000.0,0.00014247,2]
[403159729,1769218233364,-150.0,0.00014296,2]
[403159730,1769218233373,-215.12868972,0.00014299,2]
[403159731,1769218233382,-500.0,0.0001433,2]
[403159732,1769218233391,-15031.3283991,0.00014333,2]
[403159733,1769218233400,-23513.4095306,0.00014334,2]
[403159759,1769218238129,-34888.5591437,0.00014334,2]
[403159761,1769218238138,-630.03842677,0.00014795,2]
[403159763,1769218238149,-696.02637785,0.00014953,2]
[403159765,1769218238159,-150.0,0.00015318,2]
[403159768,1769218238170,-155.0,0.00015359,2]
[403159770,1769218238179,-161.0,0.000154,2]
[403159776,1769218238337,-151.0,0.000154,2]
[403159777,1769218238347,-864.0,0.00015518,2]
[403159778,1769218238356,-161.0,0.000157,2]
[403159779,1769218238366,-161.0,0.000157,2]
[403159780,1769218238375,-161.0,0.000161,2]
[403159781,1769218238384,-161.0,0.000161,2]
[403159782,1769218238394,-151.0,0.000162,2]
[403159783,1769218238404,-247.94493052,0.00016299,2]
[403159784,1769218238412,-150.0,0.00016339,2]
[403159785,1769218238422,-151.0,0.000168,2]
[403159786,1769218238430,-161.0,0.000168,2]
[403159787,1769218238439,-161.0,0.000168,2]
[403159788,1769218238449,-1000.0,0.00017069,2]
[403159789,1769218238458,-320.76120118,0.00017161,2]
[403159790,1769218238467,-411.50235455,0.00017179,2]
[403159791,1769218238476,-151.0,0.000175,2]
[403159792,1769218238485,-161.0,0.000177,2]
[403159793,1769218238494,-161.0,0.000177,2]
[403159794,1769218238502,-577.37016213,0.00018049,2]
[403159795,1769218238511,-151.0,0.000181,2]
[403159796,1769218238520,-280.76117133,0.00018299,2]
[403159797,1769218238530,-151.0,0.000187,2]
[403159798,1769218238539,-161.0,0.000187,3]
[403159799,1769218238549,-161.0,0.000187,3]
[403159800,1769218238558,-1000.0,0.00018776,2]
[403159801,1769218238567,-244.0,0.00018776,2]
[403159802,1769218238577,-306.93731466,0.000189,2]
[403159803,1769218238586,-1026.43584378,0.00018937,2]
[403159804,1769218238595,-6469.35329627,0.00019,2]
[403159805,1769218238604,-310.3,0.00019117,2]
[403159806,1769218238614,-3095.8926536,0.00019225,2]
[403159807,1769218238623,-1316.42546452,0.00019236,2]
[403159808,1769218238633,-154.1354191,0.00019256,2]
[403159809,1769218238642,-167.91,0.000193,2]
[403159810,1769218238652,-165.47,0.000193,2]
[403159811,1769218238662,-178.1,0.000193,2]
[403159812,1769218238671,-151.0,0.000194,2]
[403159813,1769218238680,-1041.66666667,0.0001941,2]
[403159814,1769218238690,-905.17,0.00019442,3]
[403159815,1769218238699,-1340.23,0.00019452,2]
[403159816,1769218238708,-151.0,0.000196,2]
[403159817,1769218238718,-159.5850682,0.000197,4]
[403159818,1769218238727,-500.0,0.00019726,2]
[403159819,1769218238737,-1603.80600591,0.00019826,2]
[403159820,1769218238746,-161.0,0.000199,4]